[Event "Live Chess"]
[Site "Chess.com"]
[Date "2023.05.21"]
[Round "-"]
[White "domrobson"]
[Black "mliszewski"]
[Result "1-0"]
[WhiteElo "1757"]
[BlackElo "1815"]
[TimeControl "300"]
[EndTime "7:40:08 PDT"]
[Termination "domrobson won by resignation"]

1. d4 {[%clk 0:04:59.1]} 1... d5 {[%clk 0:04:58.1]} 2. c4 {[%clk 0:04:58.4]}
2... e5 {[%clk 0:04:57.2]} 3. dxe5 {[%clk 0:04:57.2]} 3... d4 {[%clk 0:04:56.8]}
4. Nf3 {[%clk 0:04:56.6]} 4... Nc6 {[%clk 0:04:56.2]} 5. a3 {[%clk 0:04:56.2]}
5... a5 {[%clk 0:04:54.8]} 6. Nbd2 {[%clk 0:04:53]} 6... f6 {[%clk 0:04:50]} 7.
exf6 {[%clk 0:04:47.9]} 7... Nxf6 {[%clk 0:04:48.9]} 8. Nb3 {[%clk 0:04:47.5]}
8... Be6 {[%clk 0:04:29.9]} 9. Nbxd4 {[%clk 0:04:42.8]} 9... Nxd4 {[%clk
0:04:27]} 10. Nxd4 {[%clk 0:04:35.1]} 10... Bxc4 {[%clk 0:04:26.4]} 11. Qa4+
{[%clk 0:04:30.6]} 11... b5 {[%clk 0:04:14.4]} 12. Nxb5 {[%clk 0:04:28.5]} 12...
Bxb5 {[%clk 0:04:12.8]} 13. Qxb5+ {[%clk 0:04:26.8]} 13... Qd7 {[%clk
0:04:12.2]} 14. Qxd7+ {[%clk 0:04:25.4]} 14... Nxd7 {[%clk 0:04:10]} 15. e3
{[%clk 0:04:24.6]} 15... Bd6 {[%clk 0:04:09.6]} 16. Bb5 {[%clk 0:04:23.7]} 16...
Ke7 {[%clk 0:04:05]} 17. Bxd7 {[%clk 0:04:21.5]} 17... Kxd7 {[%clk 0:04:04.3]}
18. O-O {[%clk 0:04:20.9]} 18... g5 {[%clk 0:04:00.5]} 19. Bd2 {[%clk
0:04:19.8]} 19... h5 {[%clk 0:03:58.6]} 20. Bc3 {[%clk 0:04:19.1]} 20... Rhg8
{[%clk 0:03:57.3]} 21. Rad1 {[%clk 0:04:18.4]} 21... Ke6 {[%clk 0:03:55.1]} 22.
e4 {[%clk 0:04:13]} 22... a4 {[%clk 0:03:52.9]} 23. Rfe1 {[%clk 0:04:09.3]}
23... Be7 {[%clk 0:03:46.9]} 24. Rd5 {[%clk 0:04:03.3]} 24... Ra6 {[%clk
0:03:42.7]} 25. Red1 {[%clk 0:03:59]} 25... Rd6 {[%clk 0:03:40.3]} 26. Rxd6+
{[%clk 0:03:56.5]} 26... Bxd6 {[%clk 0:03:39.7]} 27. f3 {[%clk 0:03:52.8]} 27...
g4 {[%clk 0:03:38.4]} 28. fxg4 {[%clk 0:03:47.6]} 28... hxg4 {[%clk 0:03:36.2]}
29. g3 {[%clk 0:03:44.8]} 29... Rb8 {[%clk 0:03:30.9]} 30. Rd4 {[%clk
0:03:42.3]} 30... Bc5 {[%clk 0:03:21.7]} 31. Kg2 {[%clk 0:03:41.3]} 31... Bxd4
{[%clk 0:03:20.8]} 32. Bxd4 {[%clk 0:03:40.7]} 32... Rb5 {[%clk 0:03:16.1]} 33.
Bc3 {[%clk 0:03:39.4]} 33... c5 {[%clk 0:03:10.6]} 34. e5 {[%clk 0:03:38.6]}
34... c4 {[%clk 0:03:09]} 35. h3 {[%clk 0:03:37.3]} 35... gxh3+ {[%clk
0:03:07.8]} 36. Kxh3 {[%clk 0:03:36.1]} 36... Rd5 {[%clk 0:03:07.7]} 37. Kg4
{[%clk 0:03:31.4]} 37... Rd3 {[%clk 0:03:06.1]} 38. Kf4 {[%clk 0:03:26.9]} 38...
Rd1 {[%clk 0:03:04.2]} 39. g4 {[%clk 0:03:25.2]} 39... Rf1+ {[%clk 0:03:02.6]}
40. Kg5 {[%clk 0:03:21.3]} 40... Rg1 {[%clk 0:02:57.6]} 41. Kh5 {[%clk
0:03:19.2]} 41... Kf7 {[%clk 0:02:55.5]} 42. g5 {[%clk 0:03:14.2]} 42... Rh1+
{[%clk 0:02:52.7]} 43. Kg4 {[%clk 0:03:13]} 43... Kg6 {[%clk 0:02:52.3]} 44. e6
{[%clk 0:03:07.3]} 44... Rg1+ {[%clk 0:02:49.4]} 45. Kf4 {[%clk 0:03:04.5]}
45... Rxg5 {[%clk 0:02:46.4]} 46. e7 {[%clk 0:03:02.8]} 46... Rf5+ {[%clk
0:02:44]} 47. Ke4 {[%clk 0:03:01.5]} 47... Kf7 {[%clk 0:02:27.6]} 48. Kxf5
{[%clk 0:03:00.1]} 48... Kxe7 {[%clk 0:02:27.3]} 49. Ke5 {[%clk 0:03:00]} 49...
Kd7 {[%clk 0:02:26.9]} 50. Kd5 {[%clk 0:02:59.9]} 50... Kc7 {[%clk 0:02:26.3]}
51. Kxc4 {[%clk 0:02:59.8]} 51... Kc6 {[%clk 0:02:25.7]} 52. Kb4 {[%clk
0:02:59.7]} 52... Kb6 {[%clk 0:02:24.8]} 53. Kxa4 {[%clk 0:02:59.6]} 53... Kc5
{[%clk 0:02:24]} 54. b4+ {[%clk 0:02:56.4]} 54... Kc4 {[%clk 0:02:23]} 55. Bh8
{[%clk 0:02:56.3]} 55... Kd5 {[%clk 0:02:18.9]} 56. b5 {[%clk 0:02:55.2]} 56...
Kc5 {[%clk 0:02:18.3]} 57. Ka5 {[%clk 0:02:54.6]} 57... Kd6 {[%clk 0:02:17.4]}
58. b6 {[%clk 0:02:54]} 58... Kc6 {[%clk 0:02:17.1]} 59. Ka6 {[%clk 0:02:53.9]}
59... Kd6 {[%clk 0:02:15.9]} 60. Ka7 {[%clk 0:02:53.8]} 60... Ke6 {[%clk
0:02:15.6]} 61. b7 {[%clk 0:02:53.7]} 61... Kf5 {[%clk 0:02:15.4]} 62. b8=Q
{[%clk 0:02:52.9]} 1-0

[Event "Live Chess"]
[Site "Chess.com"]
[Date "2023.05.21"]
[Round "-"]
[White "AlanPaling"]
[Black "zdanevych"]
[Result "1-0"]
[WhiteElo "1395"]
[BlackElo "1469"]
[TimeControl "300"]
[EndTime "7:40:25 PDT"]
[Termination "AlanPaling won by resignation"]

1. c4 {[%clk 0:04:53.8]} 1... c6 {[%clk 0:04:58.7]} 2. g3 {[%clk 0:04:52]} 2...
d5 {[%clk 0:04:58.3]} 3. Nf3 {[%clk 0:04:50.2]} 3... a6 {[%clk 0:04:56]} 4. Bg2
{[%clk 0:04:49.1]} 4... dxc4 {[%clk 0:04:55.5]} 5. Na3 {[%clk 0:04:44.3]} 5...
b5 {[%clk 0:04:54.2]} 6. Ne5 {[%clk 0:04:42.6]} 6... Bb7 {[%clk 0:04:51.1]} 7.
O-O {[%clk 0:04:37.2]} 7... e6 {[%clk 0:04:41.6]} 8. b3 {[%clk 0:04:29.3]} 8...
Bxa3 {[%clk 0:04:40.3]} 9. Bxa3 {[%clk 0:04:27]} 9... Nd7 {[%clk 0:04:33.2]} 10.
d4 {[%clk 0:04:16.9]} 10... cxd3 {[%clk 0:04:30.3]} 11. Nxd3 {[%clk 0:04:10.2]}
11... Ne7 {[%clk 0:04:28.2]} 12. Nc5 {[%clk 0:04:07.6]} 12... Nxc5 {[%clk
0:04:21.2]} 13. Bxc5 {[%clk 0:04:06.1]} 13... Qxd1 {[%clk 0:04:09.3]} 14. Rfxd1
{[%clk 0:04:03]} 14... Nd5 {[%clk 0:04:08.6]} 15. Rac1 {[%clk 0:03:56.3]} 15...
f6 {[%clk 0:04:06.3]} 16. e4 {[%clk 0:03:53.2]} 16... Ne7 {[%clk 0:03:59.9]} 17.
Bxe7 {[%clk 0:03:46.8]} 17... Kxe7 {[%clk 0:03:58.9]} 18. e5 {[%clk 0:03:45.9]}
18... Rhd8 {[%clk 0:03:55.4]} 19. exf6+ {[%clk 0:03:41.3]} 19... gxf6 {[%clk
0:03:54.2]} 20. Rxd8 {[%clk 0:03:39.4]} 20... Rxd8 {[%clk 0:03:54.1]} 21. h4
{[%clk 0:03:28.4]} 21... Rd2 {[%clk 0:03:52.8]} 22. a4 {[%clk 0:03:23]} 22...
Rb2 {[%clk 0:03:49.9]} 23. axb5 {[%clk 0:03:19.3]} 23... axb5 {[%clk 0:03:49.8]}
24. Rc3 {[%clk 0:03:15.5]} 24... Rb1+ {[%clk 0:03:48.7]} 25. Kh2 {[%clk
0:03:13]} 25... Kd7 {[%clk 0:03:40.8]} 26. g4 {[%clk 0:03:00.3]} 26... Kc7
{[%clk 0:03:39.4]} 27. g5 {[%clk 0:02:56.2]} 27... fxg5 {[%clk 0:03:38.1]} 28.
hxg5 {[%clk 0:02:54.8]} 28... Kb6 {[%clk 0:03:36.7]} 29. Be4 {[%clk 0:02:50.4]}
29... Rb2 {[%clk 0:03:31.7]} 30. Kg3 {[%clk 0:02:47.7]} 30... c5 {[%clk
0:03:30]} 31. Bxh7 {[%clk 0:02:37.8]} 31... b4 {[%clk 0:03:24.7]} 32. Re3 {[%clk
0:02:35.6]} 32... Rb1 {[%clk 0:03:19.6]} 33. g6 {[%clk 0:02:30.2]} 33... e5
{[%clk 0:03:14.2]} 34. Rxe5 {[%clk 0:02:21.3]} 34... Rxb3+ {[%clk 0:03:06.2]}
35. Kh4 {[%clk 0:02:16.5]} 35... Rf3 {[%clk 0:02:56.9]} 36. g7 {[%clk
0:02:12.3]} 36... Rf4+ {[%clk 0:02:54.3]} 37. Kh5 {[%clk 0:01:54.8]} 37... Bf3+
{[%clk 0:02:50.4]} 38. Kh6 {[%clk 0:01:49.8]} 38... Rf6+ {[%clk 0:02:36.6]} 39.
Bg6 {[%clk 0:01:41.8]} 1-0

[Event "Live Chess"]
[Site "Chess.com"]
[Date "2023.05.21"]
[Round "-"]
[White "manthanit"]
[Black "martynstanley"]
[Result "0-1"]
[WhiteElo "1103"]
[BlackElo "1039"]
[TimeControl "300"]
[EndTime "7:40:30 PDT"]
[Termination "martynstanley won on time"]

1. e4 {[%clk 0:04:54.8]} 1... e6 {[%clk 0:04:59.2]} 2. h3 {[%clk 0:04:52.2]}
2... d5 {[%clk 0:04:58.4]} 3. exd5 {[%clk 0:04:51.3]} 3... exd5 {[%clk
0:04:57.7]} 4. Nf3 {[%clk 0:04:50.9]} 4... c5 {[%clk 0:04:57.4]} 5. d4 {[%clk
0:04:49.6]} 5... Nc6 {[%clk 0:04:56.9]} 6. dxc5 {[%clk 0:04:48.7]} 6... Bxc5
{[%clk 0:04:55.7]} 7. Bd3 {[%clk 0:04:47.4]} 7... Qb6 {[%clk 0:04:55.1]} 8. O-O
{[%clk 0:04:45.9]} 8... Qc7 {[%clk 0:04:53.2]} 9. Re1+ {[%clk 0:04:38.4]} 9...
Nge7 {[%clk 0:04:52.1]} 10. Bg5 {[%clk 0:04:37.9]} 10... f6 {[%clk 0:04:50.7]}
11. Bh4 {[%clk 0:04:36.8]} 11... b6 {[%clk 0:04:49.8]} 12. Bg3 {[%clk
0:04:36.1]} 12... Qd7 {[%clk 0:04:48.5]} 13. Bb5 {[%clk 0:04:33.6]} 13... Bb7
{[%clk 0:04:47.1]} 14. c4 {[%clk 0:04:31.6]} 14... a6 {[%clk 0:04:46.3]} 15.
cxd5 {[%clk 0:04:22.5]} 15... O-O-O {[%clk 0:04:43.8]} 16. Bxc6 {[%clk
0:04:15.3]} 16... Bxc6 {[%clk 0:04:41.8]} 17. Nc3 {[%clk 0:04:06]} 17... Nxd5
{[%clk 0:04:39.8]} 18. Nxd5 {[%clk 0:03:52.5]} 18... Qxd5 {[%clk 0:04:37.3]} 19.
Qxd5 {[%clk 0:03:51.4]} 19... Rxd5 {[%clk 0:04:35.8]} 20. b3 {[%clk 0:03:50.7]}
20... Rhd8 {[%clk 0:04:33.9]} 21. Re2 {[%clk 0:03:40.1]} 21... Bd7 {[%clk
0:04:32.3]} 22. Rae1 {[%clk 0:03:26.8]} 22... Re8 {[%clk 0:04:28.3]} 23. Rxe8+
{[%clk 0:03:23.6]} 23... Bxe8 {[%clk 0:04:26.9]} 24. Rxe8+ {[%clk 0:03:23.2]}
24... Kd7 {[%clk 0:04:26.1]} 25. Re1 {[%clk 0:03:20.6]} 25... Bb4 {[%clk
0:04:23.7]} 26. Rd1 {[%clk 0:03:19.8]} 26... Rxd1+ {[%clk 0:04:22]} 27. Kh2
{[%clk 0:03:19.2]} 27... Bd6 {[%clk 0:04:20.5]} 28. Nh4 {[%clk 0:02:56.8]} 28...
Bxg3+ {[%clk 0:04:18.4]} 29. Kxg3 {[%clk 0:02:55.9]} 29... Ra1 {[%clk
0:04:17.2]} 30. Nf5 {[%clk 0:02:55]} 30... Rxa2 {[%clk 0:04:16.5]} 31. Nxg7
{[%clk 0:02:54.2]} 31... Rb2 {[%clk 0:04:15.7]} 32. Nf5 {[%clk 0:02:52.5]} 32...
Rxb3+ {[%clk 0:04:15]} 33. f3 {[%clk 0:02:50.8]} 33... a5 {[%clk 0:04:12.9]} 34.
Kh4 {[%clk 0:02:48.1]} 34... a4 {[%clk 0:04:10.9]} 35. Kh5 {[%clk 0:02:47.5]}
35... a3 {[%clk 0:04:10.3]} 36. Kh6 {[%clk 0:02:47.1]} 36... a2 {[%clk
0:04:09.8]} 37. Kxh7 {[%clk 0:02:46.7]} 37... a1=Q {[%clk 0:04:08.6]} 38. Kg7
{[%clk 0:02:46.4]} 38... Rb2 {[%clk 0:04:05.9]} 39. g4 {[%clk 0:02:42.3]} 39...
Qa7 {[%clk 0:04:01.7]} 40. h4 {[%clk 0:02:40.8]} 40... Ke6+ {[%clk 0:04:00.3]}
41. Kg6 {[%clk 0:02:40.1]} 41... b5 {[%clk 0:03:53.3]} 42. Ng7+ {[%clk
0:02:37.7]} 42... Ke7 {[%clk 0:03:45.3]} 43. Nf5+ {[%clk 0:02:36.2]} 43... Ke6
{[%clk 0:03:43.8]} 44. Ng7+ {[%clk 0:02:35.5]} 44... Kd6 {[%clk 0:03:41.6]} 45.
Nf5+ {[%clk 0:02:34.2]} 45... Kc5 {[%clk 0:03:37.4]} 46. Kxf6 {[%clk 0:02:14.4]}
46... Qb6+ {[%clk 0:03:34.6]} 47. Kg5 {[%clk 0:02:13.5]} 47... Rf2 {[%clk
0:03:32.4]} 48. Kf4 {[%clk 0:02:10.9]} 48... Qc7+ {[%clk 0:03:29.7]} 49. Ke3
{[%clk 0:02:09.5]} 49... Rxf3+ {[%clk 0:03:23.1]} 50. Kxf3 {[%clk 0:02:08.3]}
50... Qe5 {[%clk 0:03:21.5]} 51. h5 {[%clk 0:01:51.1]} 51... b4 {[%clk
0:03:19.8]} 52. Ne3 {[%clk 0:00:35.9]} 52... b3 {[%clk 0:03:07.5]} 53. Nd1
{[%clk 0:00:30.4]} 53... Qd5+ {[%clk 0:03:03.5]} 54. Ke2 {[%clk 0:00:27.3]}
54... Qg5 {[%clk 0:02:58.2]} 55. Ne3 {[%clk 0:00:20.9]} 55... b2 {[%clk
0:02:56.3]} 56. Nf5 {[%clk 0:00:11.4]} 56... b1=Q {[%clk 0:02:54]} 57. Kf3
{[%clk 0:00:09.9]} 57... Qf1+ {[%clk 0:02:52]} 58. Ke4 {[%clk 0:00:08.9]} 58...
Qff4+ {[%clk 0:02:50.2]} 59. Kd3 {[%clk 0:00:07.5]} 59... Qgxg4 {[%clk
0:02:49.5]} 60. Ne3 {[%clk 0:00:04.3]} 60... Qd4+ {[%clk 0:02:47.8]} 61. Kc2
{[%clk 0:00:02.4]} 61... Qxh5 {[%clk 0:02:46.2]} 0-1

[Event "Live Chess"]
[Site "Chess.com"]
[Date "2023.05.21"]
[Round "-"]
[White "AbilifyXL"]
[Black "PaulyD81"]
[Result "1-0"]
[WhiteElo "1989"]
[BlackElo "1189"]
[TimeControl "300"]
[EndTime "7:40:30 PDT"]
[Termination "AbilifyXL won by resignation"]

1. d4 {[%clk 0:04:58.8]} 1... Nf6 {[%clk 0:04:54.8]} 2. c4 {[%clk 0:04:58.7]}
2... e6 {[%clk 0:04:53.7]} 3. Nf3 {[%clk 0:04:55.9]} 3... Bb4+ {[%clk
0:04:52.8]} 4. Bd2 {[%clk 0:04:53.8]} 4... Bxd2+ {[%clk 0:04:50.7]} 5. Nbxd2
{[%clk 0:04:53.7]} 5... d5 {[%clk 0:04:48.5]} 6. cxd5 {[%clk 0:04:52.3]} 6...
Qxd5 {[%clk 0:04:38.7]} 7. e3 {[%clk 0:04:49.7]} 7... Nc6 {[%clk 0:04:04.7]} 8.
Be2 {[%clk 0:04:43]} 8... e5 {[%clk 0:04:00.1]} 9. dxe5 {[%clk 0:04:19.4]} 9...
Nxe5 {[%clk 0:03:56.4]} 10. Qc2 {[%clk 0:04:13.2]} 10... Nxf3+ {[%clk
0:03:41.8]} 11. Bxf3 {[%clk 0:04:12.2]} 11... Qd6 {[%clk 0:03:33.7]} 12. O-O
{[%clk 0:04:09.7]} 12... O-O {[%clk 0:03:32.7]} 13. Rfd1 {[%clk 0:04:06.6]}
13... Qe5 {[%clk 0:03:07.4]} 14. Nc4 {[%clk 0:04:01.8]} 14... Bf5 {[%clk
0:02:53.3]} 15. Nxe5 {[%clk 0:03:33.5]} 15... Bxc2 {[%clk 0:02:50.9]} 16. Rdc1
{[%clk 0:03:32.1]} 16... Bf5 {[%clk 0:02:31.2]} 17. Rxc7 {[%clk 0:03:27.5]}
17... Rfe8 {[%clk 0:02:24.2]} 18. Nxf7 {[%clk 0:03:08.2]} 18... Bc8 {[%clk
0:02:09.4]} 19. Nd6 {[%clk 0:03:02.9]} 19... Rf8 {[%clk 0:01:52.5]} 20. Nxc8
{[%clk 0:02:59.7]} 20... Raxc8 {[%clk 0:01:51.3]} 21. Rxb7 {[%clk 0:02:57.7]}
21... Rb8 {[%clk 0:01:47.8]} 22. Rxb8 {[%clk 0:02:55.3]} 22... Rxb8 {[%clk
0:01:46.3]} 23. b3 {[%clk 0:02:54.1]} 23... Rd8 {[%clk 0:01:36]} 24. Rd1 {[%clk
0:02:43.7]} 24... Rxd1+ {[%clk 0:01:30.3]} 25. Bxd1 {[%clk 0:02:41.6]} 25... Ne4
{[%clk 0:01:29.5]} 26. Bc2 {[%clk 0:02:33.4]} 26... Nc3 {[%clk 0:01:22.1]} 27.
a4 {[%clk 0:02:30.5]} 27... a5 {[%clk 0:01:17.1]} 28. Kf1 {[%clk 0:02:28.7]}
28... Nd5 {[%clk 0:01:11.7]} 29. Ke1 {[%clk 0:02:26.5]} 29... Kf7 {[%clk
0:01:07.1]} 30. Bd3 {[%clk 0:02:21]} 30... g6 {[%clk 0:01:04.6]} 31. Bc4 {[%clk
0:02:19.9]} 31... Ke6 {[%clk 0:01:01.4]} 32. e4 {[%clk 0:02:19.1]} 32... Ke5
{[%clk 0:00:51.8]} 33. Bxd5 {[%clk 0:02:17.9]} 1-0

[Event "Live Chess"]
[Site "Chess.com"]
[Date "2023.05.21"]
[Round "-"]
[White "tpm07"]
[Black "YrrriKharkiv"]
[Result "1-0"]
[WhiteElo "1962"]
[BlackElo "2048"]
[TimeControl "300"]
[EndTime "7:40:45 PDT"]
[Termination "tpm07 won by resignation"]

1. e4 {[%clk 0:04:51.9]} 1... e6 {[%clk 0:04:59.1]} 2. Nf3 {[%clk 0:04:48.1]}
2... d5 {[%clk 0:04:57.8]} 3. Nc3 {[%clk 0:04:46.9]} 3... d4 {[%clk 0:04:56.5]}
4. Ne2 {[%clk 0:04:45.6]} 4... c5 {[%clk 0:04:56.2]} 5. c3 {[%clk 0:04:42.4]}
5... Nc6 {[%clk 0:04:55.1]} 6. cxd4 {[%clk 0:04:39.9]} 6... cxd4 {[%clk
0:04:53.5]} 7. Qa4 {[%clk 0:04:38.9]} 7... Nf6 {[%clk 0:04:40.4]} 8. e5 {[%clk
0:04:29.3]} 8... Nd7 {[%clk 0:04:33.2]} 9. Nexd4 {[%clk 0:04:25.3]} 9... Nxd4
{[%clk 0:04:30.1]} 10. Qxd4 {[%clk 0:04:22.1]} 10... Qc7 {[%clk 0:04:28.7]} 11.
Bb5 {[%clk 0:04:15.7]} 11... a6 {[%clk 0:04:11.9]} 12. Ba4 {[%clk 0:04:06]}
12... b5 {[%clk 0:04:01.5]} 13. Bb3 {[%clk 0:04:02.3]} 13... Nc5 {[%clk
0:03:46.8]} 14. O-O {[%clk 0:03:50.6]} 14... Nxb3 {[%clk 0:03:43.5]} 15. axb3
{[%clk 0:03:50.5]} 15... Be7 {[%clk 0:03:40.5]} 16. Qg4 {[%clk 0:03:47.6]} 16...
g6 {[%clk 0:03:29.4]} 17. d4 {[%clk 0:03:46.3]} 17... Bb7 {[%clk 0:03:24.7]} 18.
Bh6 {[%clk 0:03:38.9]} 18... Bf8 {[%clk 0:03:17.1]} 19. Bxf8 {[%clk 0:03:33.6]}
19... Kxf8 {[%clk 0:03:14.9]} 20. Rac1 {[%clk 0:03:32.1]} 20... Qd7 {[%clk
0:03:05.8]} 21. Rfd1 {[%clk 0:03:28]} 21... Kg7 {[%clk 0:03:00.7]} 22. Qg5
{[%clk 0:03:26.3]} 22... Qd8 {[%clk 0:02:55.9]} 23. Qf4 {[%clk 0:03:18.4]} 23...
h6 {[%clk 0:02:37.7]} 24. Nd2 {[%clk 0:03:13.1]} 24... Qg5 {[%clk 0:02:15.9]}
25. Qxg5 {[%clk 0:03:05.1]} 25... hxg5 {[%clk 0:02:13.6]} 26. Rc7 {[%clk
0:02:59.4]} 26... Bd5 {[%clk 0:02:12.1]} 27. f3 {[%clk 0:02:55.8]} 27... Rh4
{[%clk 0:02:04.3]} 28. Nb1 {[%clk 0:02:39]} 28... Bxb3 {[%clk 0:01:59.8]} 29.
Rd2 {[%clk 0:02:35.4]} 29... Rd8 {[%clk 0:01:53.8]} 30. Rc6 {[%clk 0:02:09.7]}
30... Rhxd4 {[%clk 0:01:48.9]} 31. Rxd4 {[%clk 0:02:08.5]} 31... Rxd4 {[%clk
0:01:47.5]} 32. Nc3 {[%clk 0:02:07.5]} 32... Rd2 {[%clk 0:01:29.8]} 33. Rxa6
{[%clk 0:02:00.3]} 33... Rxb2 {[%clk 0:01:28.7]} 34. Ne4 {[%clk 0:01:50.6]}
34... g4 {[%clk 0:01:20.2]} 35. Nd6 {[%clk 0:01:43]} 35... gxf3 {[%clk
0:01:15.6]} 36. gxf3 {[%clk 0:01:42.9]} 36... Bd5 {[%clk 0:01:08.2]} 37. Ra7
{[%clk 0:01:40.7]} 37... g5 {[%clk 0:00:54.1]} 38. Rxf7+ {[%clk 0:01:31.7]}
38... Kg6 {[%clk 0:00:53.4]} 39. Rf6+ {[%clk 0:01:28.2]} 39... Kh5 {[%clk
0:00:50.3]} 40. Nf7 {[%clk 0:01:23.7]} 40... Rb1+ {[%clk 0:00:43]} 41. Kf2
{[%clk 0:01:04]} 41... Rb2+ {[%clk 0:00:41.1]} 42. Kg3 {[%clk 0:01:01.1]} 42...
Rg2+ {[%clk 0:00:28.1]} 43. Kxg2 {[%clk 0:00:58.7]} 43... Bxf3+ {[%clk
0:00:27.8]} 44. Kxf3 {[%clk 0:00:55.6]} 44... g4+ {[%clk 0:00:27.4]} 45. Kg3
{[%clk 0:00:53]} 1-0

[Event "Live Chess"]
[Site "Chess.com"]
[Date "2023.05.21"]
[Round "-"]
[White "Inglaterra"]
[Black "OleksiyJr1"]
[Result "1-0"]
[WhiteElo "2054"]
[BlackElo "1043"]
[TimeControl "300"]
[EndTime "7:40:45 PDT"]
[Termination "Inglaterra won by checkmate"]

1. e4 {[%clk 0:04:57.6]} 1... c5 {[%clk 0:04:56.2]} 2. Nf3 {[%clk 0:04:56.9]}
2... Nc6 {[%clk 0:04:55]} 3. c3 {[%clk 0:04:56.3]} 3... d6 {[%clk 0:04:54.6]} 4.
d4 {[%clk 0:04:52.7]} 4... cxd4 {[%clk 0:04:50.9]} 5. cxd4 {[%clk 0:04:52.6]}
5... e6 {[%clk 0:04:50.5]} 6. Nc3 {[%clk 0:04:51]} 6... e5 {[%clk 0:04:50]} 7.
Bb5 {[%clk 0:04:44.5]} 7... f6 {[%clk 0:04:47.2]} 8. O-O {[%clk 0:04:36.5]} 8...
a6 {[%clk 0:04:44.2]} 9. Bc4 {[%clk 0:04:33.7]} 9... Nge7 {[%clk 0:04:39]} 10.
a4 {[%clk 0:04:21.3]} 10... Ng6 {[%clk 0:04:34]} 11. Nd5 {[%clk 0:04:14.7]}
11... Be6 {[%clk 0:04:27.8]} 12. Nc7+ {[%clk 0:03:19.4]} 12... Qxc7 {[%clk
0:04:18.1]} 13. Bxe6 {[%clk 0:03:18.1]} 13... Be7 {[%clk 0:04:12.7]} 14. Be3
{[%clk 0:03:10]} 14... Nf8 {[%clk 0:04:06.8]} 15. Bd5 {[%clk 0:03:02.4]} 15...
Ng6 {[%clk 0:03:51.2]} 16. Qb3 {[%clk 0:02:51.3]} 16... Nxd4 {[%clk 0:03:34.3]}
17. Nxd4 {[%clk 0:02:35.4]} 17... exd4 {[%clk 0:03:32.7]} 18. Bxd4 {[%clk
0:02:31.5]} 18... Rb8 {[%clk 0:03:24.9]} 19. Rac1 {[%clk 0:02:16.8]} 19... Qd7
{[%clk 0:03:19.3]} 20. Bb6 {[%clk 0:02:02.4]} 20... Nf4 {[%clk 0:03:10.8]} 21.
Rc7 {[%clk 0:01:56.1]} 21... Qg4 {[%clk 0:03:00.4]} 22. g3 {[%clk 0:01:38.3]}
22... Nxd5 {[%clk 0:02:54.5]} 23. exd5 {[%clk 0:01:30.6]} 23... Bd8 {[%clk
0:02:53.2]} 24. Re1+ {[%clk 0:01:26.1]} 24... Kf8 {[%clk 0:02:44.6]} 25. Qe3
{[%clk 0:01:18.3]} 25... Bxc7 {[%clk 0:02:19.3]} 26. Qe7+ {[%clk 0:01:15.4]}
26... Kg8 {[%clk 0:02:17.2]} 27. Bxc7 {[%clk 0:01:11.6]} 27... Qc8 {[%clk
0:01:59.2]} 28. Bxb8 {[%clk 0:01:04]} 28... Qxb8 {[%clk 0:01:56.2]} 29. Qd7
{[%clk 0:01:01.1]} 29... h6 {[%clk 0:01:51.2]} 30. Re8+ {[%clk 0:00:59.6]} 30...
Qxe8 {[%clk 0:01:49.4]} 31. Qxe8+ {[%clk 0:00:59.5]} 31... Kh7 {[%clk
0:01:48.7]} 32. Qd7 {[%clk 0:00:54.6]} 32... Kg6 {[%clk 0:01:46.6]} 33. Qxd6
{[%clk 0:00:52.2]} 33... Re8 {[%clk 0:01:45.3]} 34. h4 {[%clk 0:00:49.8]} 34...
Re2 {[%clk 0:01:42.9]} 35. Qb6 {[%clk 0:00:44.8]} 35... h5 {[%clk 0:01:37.8]}
36. d6 {[%clk 0:00:43.6]} 36... Rd2 {[%clk 0:01:36.3]} 37. Qc7 {[%clk
0:00:41.1]} 37... Rxb2 {[%clk 0:01:33.9]} 38. d7 {[%clk 0:00:38.8]} 38... Rb1+
{[%clk 0:01:33.4]} 39. Kg2 {[%clk 0:00:37.2]} 39... Rd1 {[%clk 0:01:33.3]} 40.
Qc2+ {[%clk 0:00:34.9]} 40... f5 {[%clk 0:01:30.7]} 41. Qxd1 {[%clk 0:00:34.2]}
41... Kh7 {[%clk 0:01:30.2]} 42. d8=Q {[%clk 0:00:33.5]} 42... Kg6 {[%clk
0:01:29.7]} 43. Qg5+ {[%clk 0:00:32.4]} 43... Kf7 {[%clk 0:01:29]} 44. Qd7+
{[%clk 0:00:31.4]} 44... Kg8 {[%clk 0:01:28.4]} 45. Qgxg7# {[%clk 0:00:30.9]}
1-0